[Event "Late-Titled-Tuesday-Blitz-March-12-2024"]
[Site "Chess.com"]
[Date "2024.03.12"]
[Round "5"]
[White "AlexTruskavetsky"]
[Black "VojtechPlat"]
[Result "0-1"]
[WhiteElo "2685"]
[BlackElo "2869"]
[TimeControl "180+1"]
[EndTime "14:51:28 PDT"]
[Termination "VojtechPlat won by resignation"]

1. d4 {[%clk 0:02:57.3]} 1... d6 {[%clk 0:02:59.9]} 2. e4 {[%clk 0:02:57.4]}
2... Nf6 {[%clk 0:03:00.1]} 3. Nc3 {[%clk 0:02:57.2]} 3... e5 {[%clk 0:03:00.7]}
4. f4 {[%clk 0:02:51.4]} 4... exd4 {[%clk 0:03:00.4]} 5. Qxd4 {[%clk 0:02:52.3]}
5... Nc6 {[%clk 0:02:57.7]} 6. Qd1 {[%clk 0:02:51.8]} 6... Be7 {[%clk
0:02:55.9]} 7. Nf3 {[%clk 0:02:51.8]} 7... O-O {[%clk 0:02:56.6]} 8. Bd3 {[%clk
0:02:51.5]} 8... Re8 {[%clk 0:02:54.6]} 9. O-O {[%clk 0:02:51.5]} 9... Bf8
{[%clk 0:02:52.6]} 10. h3 {[%clk 0:02:48.9]} 10... g6 {[%clk 0:02:46.3]} 11. Be3
{[%clk 0:02:47.8]} 11... Bg7 {[%clk 0:02:45.9]} 12. Bf2 {[%clk 0:02:42.8]} 12...
Nh5 {[%clk 0:02:41.8]} 13. Ne2 {[%clk 0:02:42.5]} 13... Bxb2 {[%clk 0:02:32.2]}
14. Rb1 {[%clk 0:02:41.5]} 14... Bg7 {[%clk 0:02:32]} 15. g4 {[%clk 0:02:40.5]}
15... Nf6 {[%clk 0:02:32.1]} 16. Ng3 {[%clk 0:02:41.1]} 16... Nxg4 {[%clk
0:02:19.4]} 17. hxg4 {[%clk 0:02:40.9]} 17... Bxg4 {[%clk 0:02:20]} 18. Kg2
{[%clk 0:02:38.7]} 18... Qf6 {[%clk 0:02:19.7]} 19. Qd2 {[%clk 0:02:36.4]} 19...
d5 {[%clk 0:02:11.3]} 20. Nd4 {[%clk 0:02:35.9]} 20... Nxd4 {[%clk 0:02:10.5]}
21. e5 {[%clk 0:02:35.4]} 21... Bf3+ {[%clk 0:02:02.4]} 22. Kh3 {[%clk
0:02:17.5]} 22... Qe6+ {[%clk 0:02:01.4]} 23. Kh2 {[%clk 0:02:18]} 23... Qg4
{[%clk 0:01:59.9]} 24. Be1 {[%clk 0:01:58.3]} 24... Bh6 {[%clk 0:01:51.6]} 25.
Be4 {[%clk 0:01:30.7]} 25... dxe4 {[%clk 0:01:42.6]} 26. Qxd4 {[%clk 0:01:30.7]}
26... Rad8 {[%clk 0:01:41]} 27. Qg1 {[%clk 0:01:17]} 27... Bxf4 {[%clk
0:01:39.8]} 0-1

[Event "Late-Titled-Tuesday-Blitz-March-12-2024"]
[Site "Chess.com"]
[Date "2024.03.12"]
[Round "5"]
[White "crazyluzhinTh3"]
[Black "Supergiuly"]
[Result "1-0"]
[WhiteElo "2571"]
[BlackElo "2364"]
[TimeControl "180+1"]
[EndTime "14:51:29 PDT"]
[Termination "crazyluzhinTh3 won by resignation"]

1. e4 {[%clk 0:03:00.9]} 1... g6 {[%clk 0:02:58.7]} 2. d4 {[%clk 0:03:00.6]}
2... Bg7 {[%clk 0:02:58.9]} 3. Nf3 {[%clk 0:03:01.3]} 3... e6 {[%clk 0:02:59.4]}
4. Nc3 {[%clk 0:03:00.3]} 4... Ne7 {[%clk 0:03:00]} 5. Be3 {[%clk 0:03:00.4]}
5... O-O {[%clk 0:03:00.9]} 6. h4 {[%clk 0:03:00.5]} 6... h5 {[%clk 0:02:59.9]}
7. Qd2 {[%clk 0:03:00.5]} 7... d5 {[%clk 0:03:00.1]} 8. Bh6 {[%clk 0:03:00.7]}
8... dxe4 {[%clk 0:03:00]} 9. Nxe4 {[%clk 0:03:01.5]} 9... b6 {[%clk 0:02:57.2]}
10. Bxg7 {[%clk 0:02:53]} 10... Kxg7 {[%clk 0:02:58.1]} 11. O-O-O {[%clk
0:02:52.9]} 11... Bb7 {[%clk 0:02:57.8]} 12. Neg5 {[%clk 0:02:52.5]} 12... Nbc6
{[%clk 0:02:51.8]} 13. Kb1 {[%clk 0:02:52.1]} 13... Nf5 {[%clk 0:02:47.4]} 14.
c3 {[%clk 0:02:51.8]} 14... a5 {[%clk 0:02:44.1]} 15. Bd3 {[%clk 0:02:50.3]}
15... a4 {[%clk 0:02:42.7]} 16. a3 {[%clk 0:02:48.8]} 16... Na5 {[%clk
0:02:41.2]} 17. Qc2 {[%clk 0:02:48.3]} 17... Bd5 {[%clk 0:02:34.9]} 18. Qe2
{[%clk 0:02:42.7]} 18... Qd7 {[%clk 0:02:27]} 19. Ne5 {[%clk 0:02:40.7]} 19...
Qe7 {[%clk 0:02:21.8]} 20. g4 {[%clk 0:02:10.3]} 20... hxg4 {[%clk 0:02:18.3]}
21. Qxg4 {[%clk 0:02:11.2]} 21... Bxh1 {[%clk 0:02:09]} 22. Rxh1 {[%clk
0:02:12.1]} 22... Nh6 {[%clk 0:02:07.2]} 23. Qg2 {[%clk 0:02:06]} 23... Rad8
{[%clk 0:01:48.1]} 24. Ngxf7 {[%clk 0:01:52.6]} 24... Rxf7 {[%clk 0:01:01.5]}
25. Qxg6+ {[%clk 0:01:50.7]} 25... Kf8 {[%clk 0:01:01.5]} 26. Qxh6+ {[%clk
0:01:40.9]} 26... Ke8 {[%clk 0:00:58.6]} 27. Bg6 {[%clk 0:01:38.4]} 1-0

[Event "Late-Titled-Tuesday-Blitz-March-12-2024"]
[Site "Chess.com"]
[Date "2024.03.12"]
[Round "5"]
[White "matagordo"]
[Black "Lady_Nika"]
[Result "0-1"]
[WhiteElo "2307"]
[BlackElo "2569"]
[TimeControl "180+1"]
[EndTime "14:51:37 PDT"]
[Termination "Lady_Nika won by resignation"]

1. d4 {[%clk 0:03:00.9]} 1... d5 {[%clk 0:03:00]} 2. Bf4 {[%clk 0:03:00.6]} 2...
e6 {[%clk 0:03:00.3]} 3. e3 {[%clk 0:03:01]} 3... Bd6 {[%clk 0:03:00.9]} 4. Nf3
{[%clk 0:03:01.2]} 4... f5 {[%clk 0:03:00.8]} 5. Ne5 {[%clk 0:03:01.4]} 5... Nf6
{[%clk 0:03:01.1]} 6. Nd2 {[%clk 0:03:01.6]} 6... O-O {[%clk 0:03:01.7]} 7. Bd3
{[%clk 0:03:01.9]} 7... Nbd7 {[%clk 0:03:02.1]} 8. Qf3 {[%clk 0:03:02.1]} 8...
Ne4 {[%clk 0:03:01.7]} 9. Qh3 {[%clk 0:03:00.9]} 9... Nxd2 {[%clk 0:02:57.2]}
10. Kxd2 {[%clk 0:03:01.8]} 10... Nxe5 {[%clk 0:02:55.9]} 11. dxe5 {[%clk
0:02:57.9]} 11... Be7 {[%clk 0:02:54.6]} 12. g4 {[%clk 0:02:34.2]} 12... c5
{[%clk 0:02:52.7]} 13. gxf5 {[%clk 0:02:34.8]} 13... exf5 {[%clk 0:02:52.2]} 14.
Rhg1 {[%clk 0:02:09.9]} 14... c4 {[%clk 0:02:51.9]} 15. Bh6 {[%clk 0:02:10.1]}
15... Rf7 {[%clk 0:02:46]} 16. Bxg7 {[%clk 0:01:31.6]} 16... Rxg7 {[%clk
0:02:44.7]} 17. Bxf5 {[%clk 0:01:32.3]} 17... Bxf5 {[%clk 0:02:41.6]} 18. Rxg7+
{[%clk 0:01:28.2]} 18... Kxg7 {[%clk 0:02:41.5]} 19. Qxf5 {[%clk 0:01:27.3]}
19... Qf8 {[%clk 0:02:41.5]} 20. Qg4+ {[%clk 0:01:11.5]} 20... Kh8 {[%clk
0:02:41.4]} 21. f4 {[%clk 0:01:09.1]} 21... Qh6 {[%clk 0:02:37.9]} 22. h3 {[%clk
0:00:59.1]} 22... Rg8 {[%clk 0:02:37]} 23. Qf3 {[%clk 0:00:59.5]} 23... Qe6
{[%clk 0:02:32.7]} 24. Rf1 {[%clk 0:00:56.3]} 24... Bc5 {[%clk 0:02:26.8]} 25.
c3 {[%clk 0:00:55.5]} 25... b5 {[%clk 0:02:24]} 26. a3 {[%clk 0:00:51.5]} 26...
Bb6 {[%clk 0:02:22]} 27. Rf2 {[%clk 0:00:34.6]} 27... Qf5 {[%clk 0:02:20.8]} 28.
Kc1 {[%clk 0:00:30.4]} 28... Rg1+ {[%clk 0:02:18.7]} 29. Rf1 {[%clk 0:00:25.9]}
29... Bxe3+ {[%clk 0:02:17.2]} 0-1

[Event "Late-Titled-Tuesday-Blitz-March-12-2024"]
[Site "Chess.com"]
[Date "2024.03.12"]
[Round "5"]
[White "As0nchess"]
[Black "dealshark"]
[Result "0-1"]
[WhiteElo "2541"]
[BlackElo "2351"]
[TimeControl "180+1"]
[EndTime "14:51:44 PDT"]
[Termination "dealshark won by resignation"]

1. Nf3 {[%clk 0:03:00]} 1... d6 {[%clk 0:02:58.8]} 2. g3 {[%clk 0:03:00]} 2...
Nf6 {[%clk 0:02:56.9]} 3. Bg2 {[%clk 0:03:00.2]} 3... g6 {[%clk 0:02:57.8]} 4.
O-O {[%clk 0:02:59.9]} 4... Bg7 {[%clk 0:02:58.7]} 5. d4 {[%clk 0:02:59.6]} 5...
O-O {[%clk 0:02:59.6]} 6. c4 {[%clk 0:02:59.3]} 6... Bd7 {[%clk 0:02:59.8]} 7.
Nc3 {[%clk 0:02:58.8]} 7... Qc8 {[%clk 0:03:00.4]} 8. e4 {[%clk 0:02:56.9]} 8...
Bh3 {[%clk 0:02:59.7]} 9. Re1 {[%clk 0:02:55.8]} 9... Bxg2 {[%clk 0:02:59.6]}
10. Kxg2 {[%clk 0:02:56.7]} 10... c5 {[%clk 0:03:00.2]} 11. d5 {[%clk
0:02:56.5]} 11... a6 {[%clk 0:02:58.1]} 12. a4 {[%clk 0:02:56.3]} 12... Nbd7
{[%clk 0:02:56.4]} 13. h3 {[%clk 0:02:52.7]} 13... Ne8 {[%clk 0:02:56.3]} 14.
Bg5 {[%clk 0:02:51.1]} 14... f6 {[%clk 0:02:46.8]} 15. Be3 {[%clk 0:02:47.7]}
15... Nc7 {[%clk 0:02:46.8]} 16. a5 {[%clk 0:02:46.5]} 16... b5 {[%clk
0:02:46.4]} 17. axb6 {[%clk 0:02:45.8]} 17... Nxb6 {[%clk 0:02:47]} 18. Qd3
{[%clk 0:02:21.5]} 18... Qb7 {[%clk 0:02:32.4]} 19. Ra3 {[%clk 0:02:20.5]} 19...
Nd7 {[%clk 0:02:27.7]} 20. b3 {[%clk 0:02:18.8]} 20... Ne5 {[%clk 0:02:27.3]}
21. Nxe5 {[%clk 0:02:18.5]} 21... fxe5 {[%clk 0:02:28.2]} 22. Rea1 {[%clk
0:02:14.8]} 22... Rf7 {[%clk 0:02:22]} 23. h4 {[%clk 0:02:13.4]} 23... Raf8
{[%clk 0:02:21.8]} 24. h5 {[%clk 0:02:13.1]} 24... Qc8 {[%clk 0:02:15.5]} 25. h6
{[%clk 0:02:11.3]} 25... Bxh6 {[%clk 0:02:13.2]} 26. Qe2 {[%clk 0:02:11.8]}
26... Bxe3 {[%clk 0:02:11.8]} 27. Qxe3 {[%clk 0:02:12.5]} 27... Rxf2+ {[%clk
0:02:01]} 28. Qxf2 {[%clk 0:02:12.6]} 28... Rxf2+ {[%clk 0:02:01.9]} 29. Kxf2
{[%clk 0:02:13.5]} 29... Qh3 {[%clk 0:02:00]} 30. Rg1 {[%clk 0:02:12.4]} 30...
Qh2+ {[%clk 0:01:55.2]} 31. Rg2 {[%clk 0:02:12.5]} 31... Qh1 {[%clk 0:01:55.5]}
32. Rg1 {[%clk 0:02:13]} 32... Qh6 {[%clk 0:01:55]} 33. Ra2 {[%clk 0:02:11.8]}
33... Kg7 {[%clk 0:01:42.1]} 34. Re2 {[%clk 0:02:11.6]} 34... Qh2+ {[%clk
0:01:38]} 35. Rg2 {[%clk 0:02:11.5]} 35... Qh5 {[%clk 0:01:38.7]} 36. Re3 {[%clk
0:02:05.8]} 36... Qg4 {[%clk 0:01:37.3]} 37. Rf3 {[%clk 0:02:04.8]} 37... Ne8
{[%clk 0:01:33.2]} 38. Rh2 {[%clk 0:02:00.4]} 38... Nf6 {[%clk 0:01:29.9]} 39.
Rh4 {[%clk 0:02:00.9]} 39... Qg5 {[%clk 0:01:30.4]} 40. Ke2 {[%clk 0:02:01.1]}
40... Qc1 {[%clk 0:01:28.7]} 41. Rh2 {[%clk 0:01:58.2]} 41... Qc2+ {[%clk
0:01:13.6]} 0-1

[Event "Late-Titled-Tuesday-Blitz-March-12-2024"]
[Site "Chess.com"]
[Date "2024.03.12"]
[Round "5"]
[White "2L8IWUN"]
[Black "TheAlienParty"]
[Result "0-1"]
[WhiteElo "2171"]
[BlackElo "2392"]
[TimeControl "180+1"]
[EndTime "14:51:50 PDT"]
[Termination "TheAlienParty won by resignation"]

1. d4 {[%clk 0:03:00.9]} 1... Nf6 {[%clk 0:02:58.5]} 2. Nf3 {[%clk 0:02:59.7]}
2... e6 {[%clk 0:02:57.7]} 3. Bf4 {[%clk 0:02:57.6]} 3... c5 {[%clk 0:02:56.4]}
4. e3 {[%clk 0:02:54.7]} 4... Nc6 {[%clk 0:02:55.9]} 5. Nbd2 {[%clk 0:02:48.1]}
5... d5 {[%clk 0:02:55.3]} 6. c3 {[%clk 0:02:47]} 6... Bd6 {[%clk 0:02:54.8]} 7.
Bg3 {[%clk 0:02:46.7]} 7... b6 {[%clk 0:02:49.1]} 8. Bb5 {[%clk 0:02:26.7]} 8...
Bb7 {[%clk 0:02:48.1]} 9. Qa4 {[%clk 0:02:09.4]} 9... Qc7 {[%clk 0:02:26.1]} 10.
Bxd6 {[%clk 0:01:56]} 10... Qxd6 {[%clk 0:02:25]} 11. Ne5 {[%clk 0:01:56.9]}
11... Rc8 {[%clk 0:02:19.8]} 12. Bxc6+ {[%clk 0:01:18.6]} 12... Bxc6 {[%clk
0:02:17.8]} 13. Qxa7 {[%clk 0:01:18]} 13... O-O {[%clk 0:02:06.4]} 14. Qxb6
{[%clk 0:01:12.2]} 14... c4 {[%clk 0:02:05.9]} 15. O-O {[%clk 0:01:05.7]} 15...
Nd7 {[%clk 0:01:52.6]} 16. Nxd7 {[%clk 0:00:59.7]} 16... Qxd7 {[%clk 0:01:52.1]}
17. Nf3 {[%clk 0:00:56.6]} 17... Rb8 {[%clk 0:01:48.4]} 18. Qc5 {[%clk
0:00:50.2]} 18... f6 {[%clk 0:01:47.8]} 19. Rfb1 {[%clk 0:00:26]} 19... Rb5
{[%clk 0:01:46.5]} 20. Qa3 {[%clk 0:00:20.5]} 20... Ra8 {[%clk 0:01:44.2]} 0-1

[Event "Late-Titled-Tuesday-Blitz-March-12-2024"]
[Site "Chess.com"]
[Date "2024.03.12"]
[Round "5"]
[White "mishanick"]
[Black "Rud_2008"]
[Result "1-0"]
[WhiteElo "3104"]
[BlackElo "2775"]
[TimeControl "180+1"]
[EndTime "14:51:51 PDT"]
[Termination "mishanick won by resignation"]

1. d4 {[%clk 0:03:00.2]} 1... Nf6 {[%clk 0:03:00]} 2. c4 {[%clk 0:03:00.8]} 2...
e6 {[%clk 0:02:58.9]} 3. Nc3 {[%clk 0:03:01.4]} 3... d5 {[%clk 0:02:57.8]} 4.
Bg5 {[%clk 0:03:01.2]} 4... Be7 {[%clk 0:02:55]} 5. e3 {[%clk 0:03:01.5]} 5...
c6 {[%clk 0:02:54.1]} 6. Nf3 {[%clk 0:03:01.1]} 6... O-O {[%clk 0:02:50.7]} 7.
Bd3 {[%clk 0:03:01.7]} 7... Nbd7 {[%clk 0:02:49.5]} 8. O-O {[%clk 0:03:01.5]}
8... h6 {[%clk 0:02:45.3]} 9. Bh4 {[%clk 0:03:01.3]} 9... b6 {[%clk 0:02:45.6]}
10. Qe2 {[%clk 0:02:53.6]} 10... Bb7 {[%clk 0:02:41.4]} 11. Rac1 {[%clk
0:02:53.7]} 11... c5 {[%clk 0:02:40.3]} 12. Rfd1 {[%clk 0:02:51.3]} 12... dxc4
{[%clk 0:02:39.9]} 13. Bxc4 {[%clk 0:02:51.3]} 13... Ne4 {[%clk 0:02:03.2]} 14.
Nxe4 {[%clk 0:02:41.9]} 14... Bxe4 {[%clk 0:01:58.3]} 15. Bg3 {[%clk 0:02:41.6]}
15... Rc8 {[%clk 0:01:50.4]} 16. Ba6 {[%clk 0:02:38.1]} 16... Ra8 {[%clk
0:01:16.9]} 17. dxc5 {[%clk 0:02:38.1]} 17... Bxc5 {[%clk 0:00:29.6]} 18. Ne5
{[%clk 0:02:37.7]} 18... Nxe5 {[%clk 0:00:24.8]} 19. Rxd8 {[%clk 0:02:38.6]}
19... Rfxd8 {[%clk 0:00:25.2]} 20. Bxe5 {[%clk 0:02:38.6]} 20... Rd5 {[%clk
0:00:25.7]} 21. Bc3 {[%clk 0:02:36.3]} 21... Rg5 {[%clk 0:00:23.9]} 22. g3
{[%clk 0:02:37]} 22... Rd8 {[%clk 0:00:23.2]} 23. Rd1 {[%clk 0:02:35.7]} 23...
Rgd5 {[%clk 0:00:23.1]} 24. Rxd5 {[%clk 0:02:35.5]} 24... Bxd5 {[%clk 0:00:24]}
25. h4 {[%clk 0:02:34.5]} 25... Bc6 {[%clk 0:00:23.5]} 26. Kh2 {[%clk
0:02:33.5]} 26... Rd5 {[%clk 0:00:21.1]} 27. Qg4 {[%clk 0:02:32]} 27... g6
{[%clk 0:00:18.6]} 28. Bc4 {[%clk 0:02:29.4]} 28... Rf5 {[%clk 0:00:18.7]} 29.
f4 {[%clk 0:02:27.2]} 29... Bxe3 {[%clk 0:00:18.5]} 30. Qd1 {[%clk 0:02:27.5]}
30... Bd5 {[%clk 0:00:17.2]} 31. Bd3 {[%clk 0:02:27.8]} 31... Rh5 {[%clk
0:00:16.3]} 32. Be2 {[%clk 0:02:24.9]} 32... Rf5 {[%clk 0:00:14.6]} 33. Bg4
{[%clk 0:02:25.4]} 33... Rxf4 {[%clk 0:00:10.9]} 34. gxf4 {[%clk 0:02:25.3]}
34... Bxf4+ {[%clk 0:00:11.8]} 35. Kh3 {[%clk 0:02:25.9]} 35... h5 {[%clk
0:00:12.7]} 36. Bf3 {[%clk 0:02:24.3]} 1-0

[Event "Late-Titled-Tuesday-Blitz-March-12-2024"]
[Site "Chess.com"]
[Date "2024.03.12"]
[Round "5"]
[White "JosephRyan"]
[Black "SameerMujumdar"]
[Result "0-1"]
[WhiteElo "2208"]
[BlackElo "2537"]
[TimeControl "180+1"]
[EndTime "14:51:51 PDT"]
[Termination "SameerMujumdar won by resignation"]

1. e4 {[%clk 0:02:50.9]} 1... c6 {[%clk 0:02:56.5]} 2. Nf3 {[%clk 0:02:49.7]}
2... d5 {[%clk 0:02:57.4]} 3. d3 {[%clk 0:02:48.8]} 3... Bg4 {[%clk 0:02:55.5]}
4. h3 {[%clk 0:02:48]} 4... Bxf3 {[%clk 0:02:51.9]} 5. Qxf3 {[%clk 0:02:47.4]}
5... e6 {[%clk 0:02:52.8]} 6. Nd2 {[%clk 0:02:46.3]} 6... Nd7 {[%clk 0:02:52.5]}
7. g3 {[%clk 0:02:46.4]} 7... Ngf6 {[%clk 0:02:50.2]} 8. Bg2 {[%clk 0:02:46.5]}
8... Bc5 {[%clk 0:02:46.1]} 9. O-O {[%clk 0:02:44.6]} 9... O-O {[%clk
0:02:45.7]} 10. Qe2 {[%clk 0:02:43.1]} 10... a5 {[%clk 0:02:43.9]} 11. a4 {[%clk
0:02:41.8]} 11... dxe4 {[%clk 0:02:33.1]} 12. Nxe4 {[%clk 0:02:38.3]} 12... Nxe4
{[%clk 0:02:32.7]} 13. Qxe4 {[%clk 0:02:37.3]} 13... Nf6 {[%clk 0:02:32.5]} 14.
Qh4 {[%clk 0:02:32]} 14... Qb6 {[%clk 0:02:26.7]} 15. b3 {[%clk 0:02:23.3]}
15... Bd4 {[%clk 0:02:23.3]} 16. Rb1 {[%clk 0:02:23.1]} 16... Rad8 {[%clk
0:02:19.9]} 17. Bg5 {[%clk 0:02:16.8]} 17... h6 {[%clk 0:02:16.6]} 18. Bxf6
{[%clk 0:02:14.4]} 18... Bxf6 {[%clk 0:02:17.5]} 19. Qe4 {[%clk 0:02:13.6]}
19... Rd4 {[%clk 0:02:16.9]} 20. Qe2 {[%clk 0:02:12.4]} 20... Rfd8 {[%clk
0:02:13.5]} 21. Kh2 {[%clk 0:02:12.2]} 21... Qc7 {[%clk 0:02:12]} 22. f4 {[%clk
0:02:10.1]} 22... g6 {[%clk 0:02:08]} 23. Rbe1 {[%clk 0:02:07.7]} 23... Kg7
{[%clk 0:02:06.1]} 24. Be4 {[%clk 0:02:06.8]} 24... b5 {[%clk 0:02:01.2]} 25. h4
{[%clk 0:02:06.2]} 25... h5 {[%clk 0:01:57]} 26. Qf3 {[%clk 0:01:58.7]} 26...
bxa4 {[%clk 0:01:48.1]} 27. bxa4 {[%clk 0:01:59.6]} 27... Rxa4 {[%clk
0:01:47.2]} 28. Bxc6 {[%clk 0:01:54.5]} 28... Ra2 {[%clk 0:01:47.3]} 29. Re2
{[%clk 0:01:48.6]} 29... Rc8 {[%clk 0:01:41.4]} 30. Be4 {[%clk 0:01:47.3]} 30...
Rxc2 {[%clk 0:01:38.1]} 31. Rff2 {[%clk 0:01:47.8]} 31... Rxe2 {[%clk
0:01:37.3]} 32. Rxe2 {[%clk 0:01:48.7]} 32... a4 {[%clk 0:01:35.5]} 33. g4
{[%clk 0:01:42.5]} 33... hxg4 {[%clk 0:01:35.6]} 34. Qxg4 {[%clk 0:01:42.1]}
34... Rh8 {[%clk 0:01:35.9]} 35. Kg3 {[%clk 0:01:32.2]} 35... Rxh4 {[%clk
0:01:31.6]} 36. Qf3 {[%clk 0:01:29.7]} 36... Rxf4 {[%clk 0:01:30.4]} 37. Qe3
{[%clk 0:01:26.6]} 37... Rxe4+ {[%clk 0:01:30.1]} 0-1

[Event "Late-Titled-Tuesday-Blitz-March-12-2024"]
[Site "Chess.com"]
[Date "2024.03.12"]
[Round "5"]
[White "DryCounty"]
[Black "alexrustemov"]
[Result "1-0"]
[WhiteElo "2654"]
[BlackElo "2838"]
[TimeControl "180+1"]
[EndTime "14:51:54 PDT"]
[Termination "DryCounty won by resignation"]

1. e4 {[%clk 0:03:00.9]} 1... e6 {[%clk 0:02:58.9]} 2. d4 {[%clk 0:02:58.8]}
2... d5 {[%clk 0:02:59.3]} 3. exd5 {[%clk 0:02:58.9]} 3... exd5 {[%clk
0:02:59.3]} 4. Nf3 {[%clk 0:02:59.5]} 4... Bd6 {[%clk 0:02:58]} 5. c4 {[%clk
0:02:58.6]} 5... Nf6 {[%clk 0:02:55.5]} 6. Bg5 {[%clk 0:02:55]} 6... dxc4 {[%clk
0:02:49.2]} 7. Bxc4 {[%clk 0:02:53.5]} 7... O-O {[%clk 0:02:49.2]} 8. O-O {[%clk
0:02:53.3]} 8... h6 {[%clk 0:02:48]} 9. Bh4 {[%clk 0:02:52.2]} 9... Nc6 {[%clk
0:02:43.8]} 10. h3 {[%clk 0:02:44.8]} 10... Re8 {[%clk 0:02:26.4]} 11. Nc3
{[%clk 0:02:42.6]} 11... Bf5 {[%clk 0:02:23]} 12. Qd2 {[%clk 0:02:34.7]} 12...
Na5 {[%clk 0:01:52.8]} 13. Bb5 {[%clk 0:02:01.5]} 13... c6 {[%clk 0:01:43.5]}
14. Bd3 {[%clk 0:02:01.2]} 14... Bxd3 {[%clk 0:01:37.9]} 15. Qxd3 {[%clk
0:02:01.1]} 15... g5 {[%clk 0:01:22.3]} 16. Nxg5 {[%clk 0:01:49]} 16... hxg5
{[%clk 0:01:21.5]} 17. Bxg5 {[%clk 0:01:49.9]} 17... Be7 {[%clk 0:01:12.3]} 18.
Rae1 {[%clk 0:01:48]} 18... b6 {[%clk 0:01:04.4]} 19. Qf5 {[%clk 0:01:39.8]}
19... Nb7 {[%clk 0:00:59.3]} 20. Rxe7 {[%clk 0:01:33.6]} 20... Qxe7 {[%clk
0:00:44.8]} 21. Bxf6 {[%clk 0:01:33.3]} 21... Qf8 {[%clk 0:00:44.7]} 22. Qg5+
{[%clk 0:01:25.5]} 22... Kh7 {[%clk 0:00:42.5]} 23. Qh5+ {[%clk 0:01:25.5]} 1-0

[Event "Late-Titled-Tuesday-Blitz-March-12-2024"]
[Site "Chess.com"]
[Date "2024.03.12"]
[Round "5"]
[White "ArtemDyachuk"]
[Black "KorolDimitriy75"]
[Result "1-0"]
[WhiteElo "2687"]
[BlackElo "2430"]
[TimeControl "180+1"]
[EndTime "14:51:58 PDT"]
[Termination "ArtemDyachuk won on time"]

1. c4 {[%clk 0:03:00.9]} 1... c5 {[%clk 0:02:59.9]} 2. b3 {[%clk 0:02:59.1]}
2... g6 {[%clk 0:02:59.1]} 3. Bb2 {[%clk 0:02:59.4]} 3... Nf6 {[%clk 0:02:59.4]}
4. g3 {[%clk 0:02:57.2]} 4... Bg7 {[%clk 0:02:59.5]} 5. Bg2 {[%clk 0:02:57.6]}
5... O-O {[%clk 0:02:59.6]} 6. e3 {[%clk 0:02:56.8]} 6... d5 {[%clk 0:02:53.9]}
7. cxd5 {[%clk 0:02:56.2]} 7... Nxd5 {[%clk 0:02:54.8]} 8. Bxg7 {[%clk
0:02:56.5]} 8... Kxg7 {[%clk 0:02:55.6]} 9. Qc2 {[%clk 0:02:57.1]} 9... Nb4
{[%clk 0:02:29.6]} 10. Qc3+ {[%clk 0:02:56.4]} 10... Kg8 {[%clk 0:02:26.9]} 11.
d4 {[%clk 0:02:55.8]} 11... Qa5 {[%clk 0:02:14]} 12. Nd2 {[%clk 0:02:54.6]}
12... cxd4 {[%clk 0:02:04]} 13. exd4 {[%clk 0:02:52]} 13... Bf5 {[%clk 0:02:00]}
14. Kf1 {[%clk 0:02:29.8]} 14... Qa6+ {[%clk 0:00:41.3]} 15. Nc4 {[%clk
0:02:29]} 15... N8c6 {[%clk 0:00:17.5]} 16. Ne2 {[%clk 0:02:27.1]} 16... Rac8
{[%clk 0:00:15.9]} 17. d5 {[%clk 0:02:17.3]} 17... Nc2 {[%clk 0:00:10.7]} 18.
Rc1 {[%clk 0:02:16.5]} 18... N6b4 {[%clk 0:00:07.7]} 19. g4 {[%clk 0:02:14]}
19... Bd3 {[%clk 0:00:07.1]} 20. Bf3 {[%clk 0:02:08.6]} 20... b5 {[%clk
0:00:06.9]} 21. Rxc2 {[%clk 0:02:05.8]} 21... bxc4 {[%clk 0:00:05.5]} 22. Rd2
{[%clk 0:02:04.1]} 22... Nxa2 {[%clk 0:00:04.9]} 23. Qd4 {[%clk 0:02:01]} 23...
cxb3 {[%clk 0:00:02.9]} 24. Rxd3 {[%clk 0:02:00]} 1-0

[Event "Late-Titled-Tuesday-Blitz-March-12-2024"]
[Site "Chess.com"]
[Date "2024.03.12"]
[Round "5"]
[White "HanSchut"]
[Black "BrandonJiang123456"]
[Result "1-0"]
[WhiteElo "2326"]
[BlackElo "2141"]
[TimeControl "180+1"]
[EndTime "14:52:16 PDT"]
[Termination "HanSchut won by resignation"]

1. e4 {[%clk 0:03:00.9]} 1... c5 {[%clk 0:03:00.2]} 2. Nf3 {[%clk 0:03:01.2]}
2... Nc6 {[%clk 0:02:48.5]} 3. d4 {[%clk 0:03:00.5]} 3... cxd4 {[%clk
0:02:47.7]} 4. Nxd4 {[%clk 0:03:01.4]} 4... Nf6 {[%clk 0:02:46.1]} 5. Nc3 {[%clk
0:03:01.5]} 5... e6 {[%clk 0:02:29.7]} 6. Ndb5 {[%clk 0:03:00.8]} 6... d6 {[%clk
0:02:27.7]} 7. Bf4 {[%clk 0:03:00.2]} 7... e5 {[%clk 0:02:27.6]} 8. Bg5 {[%clk
0:03:00.8]} 8... a6 {[%clk 0:02:26]} 9. Na3 {[%clk 0:03:01.1]} 9... Be7 {[%clk
0:02:25.1]} 10. Nc4 {[%clk 0:02:53.3]} 10... Nd4 {[%clk 0:01:52.5]} 11. Be3
{[%clk 0:02:40.1]} 11... Nb5 {[%clk 0:01:44]} 12. Nxb5 {[%clk 0:02:22]} 12...
axb5 {[%clk 0:01:31.2]} 13. Nb6 {[%clk 0:02:22.1]} 13... Ra5 {[%clk 0:01:23]}
14. Qd2 {[%clk 0:02:15.2]} 14... Ra6 {[%clk 0:00:29.3]} 15. Bxb5+ {[%clk
0:02:11]} 15... Nd7 {[%clk 0:00:22]} 16. Nxc8 {[%clk 0:02:02.4]} 16... Qxc8
{[%clk 0:00:20.3]} 17. Bxa6 {[%clk 0:02:02.8]} 17... bxa6 {[%clk 0:00:20.8]} 18.
O-O {[%clk 0:01:58.4]} 18... O-O {[%clk 0:00:21.1]} 19. b3 {[%clk 0:01:53.5]}
19... Nf6 {[%clk 0:00:22]} 20. f3 {[%clk 0:01:53.5]} 20... Rd8 {[%clk
0:00:22.4]} 21. c4 {[%clk 0:01:53.5]} 21... Rd7 {[%clk 0:00:21.4]} 22. Rfd1
{[%clk 0:01:52.7]} 22... Ne8 {[%clk 0:00:20.2]} 23. Rac1 {[%clk 0:01:52.5]}
23... Nc7 {[%clk 0:00:20.5]} 24. c5 {[%clk 0:01:25.3]} 24... Qd8 {[%clk
0:00:19.8]} 25. c6 {[%clk 0:01:23.1]} 1-0